[Event "*** Titled Tuesday Blitz"]
[Site "Chess.com"]
[Date "2020.12.01"]
[Round "5"]
[White "Markov_Mikhail"]
[Black "Sam_ChessMood"]
[Result "1-0"]
[WhiteElo "2722"]
[BlackElo "2821"]
[TimeControl "180+1"]
[EndTime "10:54:30 PST"]
[Termination "Markov_Mikhail won by resignation"]

1. c4 {[%clk 0:03:00.9]} 1... e6 {[%clk 0:02:57.1]} 2. Nf3 {[%clk 0:03:00.9]}
2... d5 {[%clk 0:02:57.2]} 3. g3 {[%clk 0:03:01.8]} 3... Nf6 {[%clk 0:02:56.4]}
4. Bg2 {[%clk 0:03:02.2]} 4... Be7 {[%clk 0:02:56.9]} 5. O-O {[%clk 0:03:02.7]}
5... O-O {[%clk 0:02:57.1]} 6. d4 {[%clk 0:03:03.4]} 6... dxc4 {[%clk
0:02:56.9]} 7. Nbd2 {[%clk 0:03:03.6]} 7... b5 {[%clk 0:02:50.8]} 8. a4 {[%clk
0:03:03.5]} 8... c6 {[%clk 0:02:50.4]} 9. Qc2 {[%clk 0:03:04.1]} 9... Bb7 {[%clk
0:02:43.8]} 10. b3 {[%clk 0:03:04.3]} 10... cxb3 {[%clk 0:02:39.4]} 11. Nxb3
{[%clk 0:03:05.2]} 11... Nbd7 {[%clk 0:02:38.3]} 12. Rd1 {[%clk 0:03:02.7]}
12... a6 {[%clk 0:02:30.2]} 13. e4 {[%clk 0:02:54.3]} 13... Rc8 {[%clk
0:02:28.4]} 14. Nc5 {[%clk 0:02:54]} 14... Ba8 {[%clk 0:01:48.1]} 15. Bf4 {[%clk
0:02:25.5]} 15... a5 {[%clk 0:01:37]} 16. Ne5 {[%clk 0:02:19.1]} 16... b4 {[%clk
0:01:32.7]} 17. Nc4 {[%clk 0:02:15.6]} 17... h6 {[%clk 0:01:13.8]} 18. Nb3
{[%clk 0:01:52.8]} 18... g5 {[%clk 0:00:53.7]} 19. Bd6 {[%clk 0:01:41.4]} 19...
Bxd6 {[%clk 0:00:46.4]} 20. Nxd6 {[%clk 0:01:42.3]} 20... Rc7 {[%clk 0:00:38.6]}
21. Nxa5 {[%clk 0:01:33.9]} 21... c5 {[%clk 0:00:38.4]} 22. d5 {[%clk
0:01:25.9]} 22... exd5 {[%clk 0:00:38.6]} 23. exd5 {[%clk 0:01:26.2]} 23... Nb6
{[%clk 0:00:23.6]} 24. Nf5 {[%clk 0:01:23.4]} 24... Nfxd5 {[%clk 0:00:20.5]} 25.
Nxh6+ {[%clk 0:01:18.6]} 25... Kh8 {[%clk 0:00:20.7]} 26. Nc4 {[%clk 0:01:12.7]}
26... Qf6 {[%clk 0:00:18.2]} 27. Nxb6 {[%clk 0:01:00.3]} 27... Nxb6 {[%clk
0:00:19.1]} 28. Ng4 {[%clk 0:00:58.3]} 28... Qg6 {[%clk 0:00:16.3]} 29. Qe2
{[%clk 0:00:44.5]} 29... Bxg2 {[%clk 0:00:15.4]} 30. Qe5+ {[%clk 0:00:43.2]}
30... Kg8 {[%clk 0:00:08.8]} 31. Nf6+ {[%clk 0:00:40.3]} 31... Kg7 {[%clk
0:00:07.2]} 32. Nd7+ {[%clk 0:00:32.6]} 32... Kg8 {[%clk 0:00:04.3]} 33. Nxf8
{[%clk 0:00:31.6]} 33... Qc6 {[%clk 0:00:03.3]} 34. Rd8 {[%clk 0:00:26.5]} 1-0

[Event "*** Titled Tuesday Blitz"]
[Site "Chess.com"]
[Date "2020.12.01"]
[Round "5"]
[White "Arkady_Gitelson"]
[Black "Alexsur1981"]
[Result "0-1"]
[WhiteElo "2597"]
[BlackElo "2826"]
[TimeControl "180+1"]
[EndTime "10:54:34 PST"]
[Termination "Alexsur1981 won on time"]

1. e4 {[%clk 0:03:00.9]} 1... c5 {[%clk 0:02:55.8]} 2. b3 {[%clk 0:03:00.9]}
2... b6 {[%clk 0:02:54.3]} 3. Bb2 {[%clk 0:03:00.8]} 3... Bb7 {[%clk 0:02:54.8]}
4. Nc3 {[%clk 0:03:01.1]} 4... Nc6 {[%clk 0:02:53.3]} 5. f4 {[%clk 0:03:00.4]}
5... Nd4 {[%clk 0:02:48.9]} 6. Nf3 {[%clk 0:02:59.7]} 6... e6 {[%clk 0:02:46.3]}
7. Bd3 {[%clk 0:02:53.5]} 7... Ne7 {[%clk 0:02:42.9]} 8. Nxd4 {[%clk 0:02:49.5]}
8... cxd4 {[%clk 0:02:43.8]} 9. Nb5 {[%clk 0:02:50]} 9... Nc6 {[%clk 0:02:43.4]}
10. Nxd4 {[%clk 0:02:49.6]} 10... Nb4 {[%clk 0:02:36.9]} 11. Qf3 {[%clk
0:02:34.6]} 11... Rc8 {[%clk 0:02:29.9]} 12. c3 {[%clk 0:02:25.9]} 12... Nxd3+
{[%clk 0:02:27.9]} 13. Qxd3 {[%clk 0:02:26.8]} 13... Qh4+ {[%clk 0:02:22.6]} 14.
g3 {[%clk 0:02:25.7]} 14... Qg4 {[%clk 0:02:22.9]} 15. Nf3 {[%clk 0:02:08.9]}
15... Rc7 {[%clk 0:02:11.2]} 16. O-O-O {[%clk 0:02:03.7]} 16... Be7 {[%clk
0:02:04.2]} 17. Ne5 {[%clk 0:01:48.2]} 17... Qh3 {[%clk 0:02:02.7]} 18. Nc4
{[%clk 0:01:13.5]} 18... d5 {[%clk 0:01:56.6]} 19. Ne5 {[%clk 0:00:58.9]} 19...
O-O {[%clk 0:01:53.9]} 20. exd5 {[%clk 0:00:55.5]} 20... Bxd5 {[%clk 0:01:54.8]}
21. Rhg1 {[%clk 0:00:51.3]} 21... Qxh2 {[%clk 0:01:45.1]} 22. c4 {[%clk
0:00:46.9]} 22... b5 {[%clk 0:01:37.5]} 23. Kb1 {[%clk 0:00:40.2]} 23... bxc4
{[%clk 0:01:37.4]} 24. bxc4 {[%clk 0:00:41.1]} 24... Bb7 {[%clk 0:01:35.5]} 25.
Nf3 {[%clk 0:00:34.1]} 25... Qf2 {[%clk 0:01:17.4]} 26. Rdf1 {[%clk 0:00:25.2]}
26... Qb6 {[%clk 0:01:15.6]} 27. Ka1 {[%clk 0:00:24.2]} 27... Rd8 {[%clk
0:01:11.5]} 28. Qc2 {[%clk 0:00:21.6]} 28... Bxf3 {[%clk 0:01:07.4]} 29. f5
{[%clk 0:00:12.2]} 29... Be2 {[%clk 0:00:46.4]} 30. fxe6 {[%clk 0:00:09.4]}
30... Bxf1 {[%clk 0:00:45]} 31. exf7+ {[%clk 0:00:10.3]} 31... Kf8 {[%clk
0:00:41.7]} 32. Rxf1 {[%clk 0:00:11.2]} 32... Rb8 {[%clk 0:00:35.4]} 33. Bc3
{[%clk 0:00:06.3]} 33... Bf6 {[%clk 0:00:33]} 34. Rxf6 {[%clk 0:00:04.7]} 34...
gxf6 {[%clk 0:00:33.9]} 35. Qxh7 {[%clk 0:00:04.6]} 35... Qg1+ {[%clk
0:00:26.4]} 0-1

[Event "*** Titled Tuesday Blitz"]
[Site "Chess.com"]
[Date "2020.12.01"]
[Round "5"]
[White "MPGM"]
[Black "BogdanDeac"]
[Result "1-0"]
[WhiteElo "2653"]
[BlackElo "2954"]
[TimeControl "180+1"]
[EndTime "10:54:35 PST"]
[Termination "MPGM won on time"]

1. d4 {[%clk 0:03:00.9]} 1... Nf6 {[%clk 0:02:59.9]} 2. c4 {[%clk 0:03:01.3]}
2... e6 {[%clk 0:03:00.2]} 3. Nc3 {[%clk 0:03:00.2]} 3... Bb4 {[%clk 0:02:59.9]}
4. f3 {[%clk 0:03:00.2]} 4... d5 {[%clk 0:02:56.4]} 5. a3 {[%clk 0:02:57.2]}
5... Be7 {[%clk 0:02:56.5]} 6. e4 {[%clk 0:02:54.5]} 6... dxe4 {[%clk
0:02:56.4]} 7. fxe4 {[%clk 0:02:55.4]} 7... c5 {[%clk 0:02:56.4]} 8. d5 {[%clk
0:02:55.7]} 8... exd5 {[%clk 0:02:55.3]} 9. exd5 {[%clk 0:02:56.6]} 9... O-O
{[%clk 0:02:55]} 10. Be2 {[%clk 0:02:57.2]} 10... Re8 {[%clk 0:02:41.7]} 11. Nf3
{[%clk 0:02:47.8]} 11... Bg4 {[%clk 0:02:41.2]} 12. O-O {[%clk 0:02:48.3]} 12...
Nbd7 {[%clk 0:02:30.7]} 13. Nh4 {[%clk 0:02:28.4]} 13... Bxe2 {[%clk 0:02:20.4]}
14. Qxe2 {[%clk 0:02:29.3]} 14... Nxd5 {[%clk 0:01:59.5]} 15. Nxd5 {[%clk
0:01:40.5]} 15... Bxh4 {[%clk 0:01:58]} 16. Qg4 {[%clk 0:01:31.6]} 16... Ne5
{[%clk 0:01:49.8]} 17. Qf4 {[%clk 0:01:12]} 17... h6 {[%clk 0:01:15.7]} 18. b3
{[%clk 0:01:06.5]} 18... Bg5 {[%clk 0:00:48]} 19. Qg3 {[%clk 0:01:06.4]} 19...
Rc8 {[%clk 0:00:10.5]} 20. Bb2 {[%clk 0:01:02.7]} 20... Ng6 {[%clk 0:00:10.7]}
21. Rad1 {[%clk 0:00:53.9]} 21... Re6 {[%clk 0:00:09.9]} 22. Nf6+ {[%clk
0:00:44.2]} 22... gxf6 {[%clk 0:00:09.7]} 23. Rxd8+ {[%clk 0:00:43.5]} 23...
Rxd8 {[%clk 0:00:10.6]} 24. Kh1 {[%clk 0:00:31]} 24... Kg7 {[%clk 0:00:08.4]}
25. Qf3 {[%clk 0:00:24.6]} 25... b6 {[%clk 0:00:06.2]} 26. Bc1 {[%clk
0:00:18.5]} 26... Ne5 {[%clk 0:00:04.8]} 27. Qg3 {[%clk 0:00:17.8]} 27... Rd3
{[%clk 0:00:04.4]} 28. Qf2 {[%clk 0:00:15.8]} 28... Ng4 {[%clk 0:00:04.5]} 29.
Qg1 {[%clk 0:00:12.2]} 29... Bxc1 {[%clk 0:00:03.8]} 30. Rxc1 {[%clk 0:00:13.1]}
30... Re2 {[%clk 0:00:03.8]} 31. h3 {[%clk 0:00:12.2]} 31... Nf2+ {[%clk
0:00:02.4]} 32. Kh2 {[%clk 0:00:12.8]} 1-0

[Event "*** Titled Tuesday Blitz"]
[Site "Chess.com"]
[Date "2020.12.01"]
[Round "5"]
[White "mortngabriel"]
[Black "Ariadna_Atreides"]
[Result "1-0"]
[WhiteElo "2276"]
[BlackElo "2064"]
[TimeControl "180+1"]
[EndTime "10:54:35 PST"]
[Termination "mortngabriel won by resignation"]

1. e4 {[%clk 0:02:59.7]} 1... c6 {[%clk 0:02:48.9]} 2. Nf3 {[%clk 0:02:54.4]}
2... d5 {[%clk 0:02:48.2]} 3. d3 {[%clk 0:02:55.3]} 3... Bg4 {[%clk 0:02:39.9]}
4. Nbd2 {[%clk 0:02:34.4]} 4... e6 {[%clk 0:02:32.8]} 5. Be2 {[%clk 0:02:34.3]}
5... Nf6 {[%clk 0:02:30.7]} 6. O-O {[%clk 0:02:32.2]} 6... Be7 {[%clk
0:02:29.3]} 7. c3 {[%clk 0:02:29.7]} 7... Qc7 {[%clk 0:02:22.5]} 8. Re1 {[%clk
0:02:17.3]} 8... Na6 {[%clk 0:02:03.5]} 9. exd5 {[%clk 0:02:01.1]} 9... cxd5
{[%clk 0:01:51.1]} 10. d4 {[%clk 0:01:58.3]} 10... O-O {[%clk 0:01:45.5]} 11.
Ne5 {[%clk 0:01:51.1]} 11... Bxe2 {[%clk 0:01:38.9]} 12. Qxe2 {[%clk 0:01:51.8]}
12... Nd7 {[%clk 0:01:30]} 13. Ndf3 {[%clk 0:01:41.9]} 13... Rac8 {[%clk
0:01:23.3]} 14. Bf4 {[%clk 0:01:34.2]} 14... Bd6 {[%clk 0:01:14.6]} 15. Bg3
{[%clk 0:01:29.8]} 15... Nab8 {[%clk 0:01:06.5]} 16. Rad1 {[%clk 0:01:20.8]}
16... Nc6 {[%clk 0:00:46.4]} 17. Nxf7 {[%clk 0:01:01.1]} 17... Bxg3 {[%clk
0:00:41.5]} 18. Qxe6 {[%clk 0:01:01.7]} 18... Bxf2+ {[%clk 0:00:19.3]} 19. Kxf2
{[%clk 0:00:58.1]} 19... Rxf7 {[%clk 0:00:18.5]} 20. Qxd5 {[%clk 0:00:59]} 20...
Rf8 {[%clk 0:00:15.1]} 21. Kg1 {[%clk 0:00:56.7]} 21... h6 {[%clk 0:00:12.1]}
22. Ne5 {[%clk 0:00:44.4]} 22... Ndxe5 {[%clk 0:00:09]} 23. dxe5 {[%clk
0:00:45.3]} 23... Qb6+ {[%clk 0:00:08.1]} 24. Kh1 {[%clk 0:00:42.2]} 24... Qxb2
{[%clk 0:00:05.8]} 25. e6 {[%clk 0:00:32.6]} 25... Re7 {[%clk 0:00:05.8]} 26. c4
{[%clk 0:00:32.5]} 26... Rfe8 {[%clk 0:00:05.3]} 27. Qf5 {[%clk 0:00:28.2]}
27... Qxa2 {[%clk 0:00:03.4]} 28. Rf1 {[%clk 0:00:21.7]} 28... Qxc4 {[%clk
0:00:02.9]} 29. Rd7 {[%clk 0:00:14.3]} 29... Rxe6 {[%clk 0:00:01.8]} 30. Qf7+
{[%clk 0:00:13.8]} 1-0

[Event "*** Titled Tuesday Blitz"]
[Site "Chess.com"]
[Date "2020.12.01"]
[Round "5"]
[White "Cambek64"]
[Black "Everyfishknows"]
[Result "1-0"]
[WhiteElo "2276"]
[BlackElo "2451"]
[TimeControl "180+1"]
[EndTime "10:54:37 PST"]
[Termination "Cambek64 won by resignation"]

1. e4 {[%clk 0:02:54.9]} 1... Nf6 {[%clk 0:02:59]} 2. e5 {[%clk 0:02:54.3]} 2...
Nd5 {[%clk 0:02:59]} 3. c4 {[%clk 0:02:53.8]} 3... Nb6 {[%clk 0:02:59]} 4. d4
{[%clk 0:02:54.1]} 4... d6 {[%clk 0:02:59.2]} 5. exd6 {[%clk 0:02:54.6]} 5...
cxd6 {[%clk 0:02:59.4]} 6. Be3 {[%clk 0:02:53.5]} 6... g6 {[%clk 0:02:59.3]} 7.
Nc3 {[%clk 0:02:53.8]} 7... Bg7 {[%clk 0:02:59.5]} 8. Rc1 {[%clk 0:02:54.1]}
8... O-O {[%clk 0:02:58.2]} 9. b3 {[%clk 0:02:53.3]} 9... Bf5 {[%clk 0:02:58.2]}
10. d5 {[%clk 0:02:51.3]} 10... N8d7 {[%clk 0:02:37.6]} 11. g4 {[%clk
0:02:48.5]} 11... e6 {[%clk 0:02:07.3]} 12. gxf5 {[%clk 0:02:46.5]} 12... exf5
{[%clk 0:02:06.4]} 13. Nf3 {[%clk 0:02:35]} 13... Re8 {[%clk 0:02:06.1]} 14. Be2
{[%clk 0:02:35.1]} 14... Ne5 {[%clk 0:02:00.2]} 15. Nxe5 {[%clk 0:02:23.8]}
15... Bxe5 {[%clk 0:02:00.3]} 16. Qd2 {[%clk 0:02:22.6]} 16... Qh4 {[%clk
0:01:54.8]} 17. Kd1 {[%clk 0:02:19]} 17... f4 {[%clk 0:01:49.5]} 18. Bd4 {[%clk
0:02:18.1]} 18... f3 {[%clk 0:01:48.8]} 19. Bxe5 {[%clk 0:02:08.7]} 19... fxe2+
{[%clk 0:01:48.8]} 20. Nxe2 {[%clk 0:02:06.8]} 20... Rxe5 {[%clk 0:01:46.1]} 21.
Nc3 {[%clk 0:01:58.3]} 21... Rae8 {[%clk 0:01:42.3]} 22. Kc2 {[%clk 0:01:55.3]}
22... Qh3 {[%clk 0:01:13.1]} 23. Rce1 {[%clk 0:01:46]} 23... Qf5+ {[%clk
0:01:07.9]} 24. Kb2 {[%clk 0:01:44]} 24... Kg7 {[%clk 0:01:02.9]} 25. Rxe5
{[%clk 0:01:40.4]} 25... Rxe5 {[%clk 0:01:01.6]} 26. Re1 {[%clk 0:01:37.5]}
26... Rxe1 {[%clk 0:01:00.7]} 27. Qxe1 {[%clk 0:01:35.3]} 27... Qd3 {[%clk
0:00:56.8]} 28. Nb5 {[%clk 0:01:32]} 28... Nc8 {[%clk 0:00:44.1]} 29. Qc3+
{[%clk 0:01:28.3]} 29... Qxc3+ {[%clk 0:00:44.2]} 30. Kxc3 {[%clk 0:01:28.7]}
30... a6 {[%clk 0:00:44.3]} 31. Nd4 {[%clk 0:01:21.2]} 31... Kf6 {[%clk
0:00:44.1]} 32. Kd3 {[%clk 0:01:16.8]} 32... Ke5 {[%clk 0:00:43.2]} 33. Ke3
{[%clk 0:01:15.6]} 33... g5 {[%clk 0:00:41.7]} 34. Nf3+ {[%clk 0:00:58.9]} 34...
Kf5 {[%clk 0:00:41]} 35. Ng1 {[%clk 0:00:57.1]} 35... Ke5 {[%clk 0:00:35]} 36.
Nf3+ {[%clk 0:00:50.6]} 36... Kf5 {[%clk 0:00:34.8]} 37. Ng1 {[%clk 0:00:51]}
37... b5 {[%clk 0:00:24.8]} 38. Kd4 {[%clk 0:00:45.9]} 38... bxc4 {[%clk
0:00:22.3]} 39. bxc4 {[%clk 0:00:46.4]} 39... Nb6 {[%clk 0:00:21.9]} 40. c5
{[%clk 0:00:46]} 40... dxc5+ {[%clk 0:00:21.8]} 41. Kxc5 {[%clk 0:00:46.6]}
41... Na4+ {[%clk 0:00:20.6]} 42. Kc6 {[%clk 0:00:45.1]} 42... Kf6 {[%clk
0:00:06.5]} 43. d6 {[%clk 0:00:45.1]} 43... Ke6 {[%clk 0:00:06.6]} 44. d7 {[%clk
0:00:43.1]} 44... Ke7 {[%clk 0:00:02.1]} 45. Kc7 {[%clk 0:00:43.4]} 1-0

[Event "*** Titled Tuesday Blitz"]
[Site "Chess.com"]
[Date "2020.12.01"]
[Round "5"]
[White "LionTheLeon_06"]
[Black "vladimirdamjanovic"]
[Result "1-0"]
[WhiteElo "2636"]
[BlackElo "2454"]
[TimeControl "180+1"]
[EndTime "10:54:40 PST"]
[Termination "LionTheLeon_06 won by checkmate"]

1. Nf3 {[%clk 0:03:00.9]} 1... Nf6 {[%clk 0:02:59.8]} 2. b4 {[%clk 0:02:58.7]}
2... g6 {[%clk 0:02:59]} 3. Bb2 {[%clk 0:02:58.6]} 3... Bg7 {[%clk 0:02:59.4]}
4. e3 {[%clk 0:02:58.4]} 4... d5 {[%clk 0:02:59.1]} 5. c4 {[%clk 0:02:55.7]}
5... c6 {[%clk 0:02:57.8]} 6. Be2 {[%clk 0:02:55.6]} 6... O-O {[%clk 0:02:57.5]}
7. d4 {[%clk 0:02:55.7]} 7... Bf5 {[%clk 0:02:55.6]} 8. O-O {[%clk 0:02:55.5]}
8... Nbd7 {[%clk 0:02:45.7]} 9. Nc3 {[%clk 0:02:54.8]} 9... Ne4 {[%clk
0:02:39.7]} 10. Nh4 {[%clk 0:02:42.2]} 10... Nxc3 {[%clk 0:02:38.2]} 11. Bxc3
{[%clk 0:02:43.1]} 11... Be6 {[%clk 0:02:37.6]} 12. c5 {[%clk 0:02:41.5]} 12...
Nf6 {[%clk 0:02:31.5]} 13. a4 {[%clk 0:02:31.6]} 13... Ne4 {[%clk 0:02:31.1]}
14. Bb2 {[%clk 0:02:31.8]} 14... Bd7 {[%clk 0:02:24.7]} 15. Nf3 {[%clk
0:02:28.4]} 15... f5 {[%clk 0:02:18.6]} 16. Ne5 {[%clk 0:02:27.3]} 16... f4
{[%clk 0:02:07.6]} 17. f3 {[%clk 0:02:26.6]} 17... Ng5 {[%clk 0:01:58]} 18. exf4
{[%clk 0:02:25]} 18... Rxf4 {[%clk 0:01:36.7]} 19. Bc1 {[%clk 0:02:16.7]} 19...
Bxe5 {[%clk 0:01:29.9]} 20. dxe5 {[%clk 0:02:14.5]} 20... Rf5 {[%clk 0:01:28.3]}
21. Bd3 {[%clk 0:02:14.5]} 21... Rxe5 {[%clk 0:01:08.1]} 22. f4 {[%clk
0:02:05.6]} 22... Nh3+ {[%clk 0:00:59.4]} 23. gxh3 {[%clk 0:02:04.2]} 23... Rh5
{[%clk 0:00:59.4]} 24. Bb2 {[%clk 0:01:51.6]} 24... Bxh3 {[%clk 0:00:54.6]} 25.
Rf2 {[%clk 0:01:49.8]} 25... Qd7 {[%clk 0:00:47.2]} 26. Qe2 {[%clk 0:01:42.6]}
26... Rf8 {[%clk 0:00:36.7]} 27. Re1 {[%clk 0:01:39.3]} 27... Rf7 {[%clk
0:00:26.9]} 28. Qe3 {[%clk 0:01:32.6]} 28... Rh4 {[%clk 0:00:25.9]} 29. Qe5
{[%clk 0:01:15.9]} 29... Rf6 {[%clk 0:00:05.7]} 30. Qxe7 {[%clk 0:01:10.1]}
30... Qxe7 {[%clk 0:00:06.1]} 31. Rxe7 {[%clk 0:01:10.2]} 31... Rfxf4 {[%clk
0:00:06.6]} 32. Be2 {[%clk 0:00:46.6]} 32... Rxf2 {[%clk 0:00:03.7]} 33. Kxf2
{[%clk 0:00:46.8]} 33... Rxb4 {[%clk 0:00:04]} 34. Be5 {[%clk 0:00:43.9]} 34...
Re4 {[%clk 0:00:03.3]} 35. Bd3 {[%clk 0:00:40]} 35... Rxa4 {[%clk 0:00:03]} 36.
Rg7+ {[%clk 0:00:39.6]} 36... Kf8 {[%clk 0:00:02.2]} 37. Rxb7 {[%clk 0:00:39]}
37... Ra2+ {[%clk 0:00:02.3]} 38. Ke3 {[%clk 0:00:38.6]} 38... Bf5 {[%clk
0:00:01.7]} 39. Bxf5 {[%clk 0:00:37.4]} 39... gxf5 {[%clk 0:00:02.6]} 40. Rxh7
{[%clk 0:00:38]} 40... Ra3+ {[%clk 0:00:02.3]} 41. Kf4 {[%clk 0:00:38.2]} 41...
a5 {[%clk 0:00:03.2]} 42. Kxf5 {[%clk 0:00:38.2]} 42... Rf3+ {[%clk 0:00:03.9]}
43. Ke6 {[%clk 0:00:38.5]} 43... a4 {[%clk 0:00:04.2]} 44. Rh8# {[%clk
0:00:38.8]} 1-0

[Event "*** Titled Tuesday Blitz"]
[Site "Chess.com"]
[Date "2020.12.01"]
[Round "5"]
[White "MIJuanReyesRosa"]
[Black "GMJustin"]
[Result "0-1"]
[WhiteElo "2059"]
[BlackElo "2308"]
[TimeControl "180+1"]
[EndTime "10:54:42 PST"]
[Termination "GMJustin won by checkmate"]

1. e4 {[%clk 0:02:57.6]} 1... e5 {[%clk 0:02:42.3]} 2. Nf3 {[%clk 0:02:56.5]}
2... Nc6 {[%clk 0:02:42.1]} 3. Bb5 {[%clk 0:02:56.7]} 3... a6 {[%clk 0:02:41.5]}
4. Ba4 {[%clk 0:02:56.9]} 4... Nf6 {[%clk 0:02:40.1]} 5. d4 {[%clk 0:02:57]}
5... exd4 {[%clk 0:02:36.6]} 6. O-O {[%clk 0:02:55.8]} 6... Be7 {[%clk
0:02:36.1]} 7. e5 {[%clk 0:02:51]} 7... Nd5 {[%clk 0:02:18]} 8. Nxd4 {[%clk
0:02:50.5]} 8... Nb6 {[%clk 0:01:21.8]} 9. Nf5 {[%clk 0:02:33.7]} 9... O-O
{[%clk 0:01:02]} 10. Qf3 {[%clk 0:01:12.8]} 10... Nxa4 {[%clk 0:00:48.6]} 11.
Qg4 {[%clk 0:01:07.1]} 11... g6 {[%clk 0:00:48.3]} 12. Nxe7+ {[%clk 0:01:04.7]}
12... Qxe7 {[%clk 0:00:48]} 13. Qxa4 {[%clk 0:00:44.5]} 13... Qxe5 {[%clk
0:00:48]} 14. Nc3 {[%clk 0:00:43.2]} 14... d6 {[%clk 0:00:44.6]} 15. Bh6 {[%clk
0:00:42.7]} 15... Re8 {[%clk 0:00:41.8]} 16. h3 {[%clk 0:00:36.9]} 16... Bd7
{[%clk 0:00:37.7]} 17. Qb3 {[%clk 0:00:35.3]} 17... Rab8 {[%clk 0:00:20.3]} 18.
Rae1 {[%clk 0:00:33.2]} 18... Qxe1 {[%clk 0:00:14.9]} 19. Rxe1 {[%clk
0:00:33.1]} 19... Rxe1+ {[%clk 0:00:15.3]} 20. Kh2 {[%clk 0:00:34]} 20... Nd4
{[%clk 0:00:14]} 21. Qd5 {[%clk 0:00:31.4]} 21... Nf5 {[%clk 0:00:13.8]} 22. Bf4
{[%clk 0:00:27.9]} 22... Bc6 {[%clk 0:00:13.7]} 23. Qd2 {[%clk 0:00:26.5]} 23...
Rbe8 {[%clk 0:00:13.9]} 24. Nd5 {[%clk 0:00:23]} 24... Bxd5 {[%clk 0:00:12.6]}
25. Qxd5 {[%clk 0:00:22.7]} 25... c6 {[%clk 0:00:10.7]} 26. Qd2 {[%clk 0:00:21]}
26... d5 {[%clk 0:00:10.5]} 27. c4 {[%clk 0:00:20.4]} 27... R1e2 {[%clk
0:00:10.6]} 28. Qd4 {[%clk 0:00:18.8]} 28... Nxd4 {[%clk 0:00:09.6]} 29. cxd5
{[%clk 0:00:18.6]} 29... Rxf2 {[%clk 0:00:09.7]} 30. Bg3 {[%clk 0:00:19.5]}
30... Rfe2 {[%clk 0:00:09.4]} 31. h4 {[%clk 0:00:19.5]} 31... cxd5 {[%clk
0:00:08.4]} 32. Kh3 {[%clk 0:00:20.4]} 32... Nf5 {[%clk 0:00:08.4]} 33. h5
{[%clk 0:00:21.3]} 33... R2e3 {[%clk 0:00:08.5]} 34. Kg4 {[%clk 0:00:22.2]}
34... Rxg3+ {[%clk 0:00:08.4]} 35. Kf4 {[%clk 0:00:23.1]} 35... Re4# {[%clk
0:00:08.6]} 0-1

[Event "*** Titled Tuesday Blitz"]
[Site "Chess.com"]
[Date "2020.12.01"]
[Round "5"]
[White "FMOlexandrProhorov"]
[Black "Sokoloco"]
[Result "0-1"]
[WhiteElo "2203"]
[BlackElo "2463"]
[TimeControl "180+1"]
[EndTime "10:54:44 PST"]
[Termination "Sokoloco won by resignation"]

1. e4 {[%clk 0:03:00.9]} 1... g6 {[%clk 0:02:58.7]} 2. d4 {[%clk 0:02:49.6]}
2... Bg7 {[%clk 0:02:58.2]} 3. Nc3 {[%clk 0:02:46.7]} 3... d6 {[%clk 0:02:58.4]}
4. f3 {[%clk 0:02:42.1]} 4... Nf6 {[%clk 0:02:49.3]} 5. Be3 {[%clk 0:02:41.7]}
5... Nc6 {[%clk 0:02:41.6]} 6. Qd2 {[%clk 0:02:33.9]} 6... h5 {[%clk 0:02:39.5]}
7. h4 {[%clk 0:02:27.7]} 7... a6 {[%clk 0:02:34.5]} 8. Nh3 {[%clk 0:02:13.2]}
8... b5 {[%clk 0:02:32.5]} 9. Ng5 {[%clk 0:02:11.3]} 9... e5 {[%clk 0:02:05.8]}
10. d5 {[%clk 0:01:55.1]} 10... Ne7 {[%clk 0:01:59.8]} 11. Be2 {[%clk 0:01:55]}
11... b4 {[%clk 0:01:42.7]} 12. Nd1 {[%clk 0:01:53.7]} 12... c5 {[%clk
0:01:36.3]} 13. dxc6 {[%clk 0:01:48.8]} 13... Nxc6 {[%clk 0:01:36.1]} 14. Bc4
{[%clk 0:01:48.6]} 14... O-O {[%clk 0:01:35.5]} 15. Nf2 {[%clk 0:01:34.1]} 15...
d5 {[%clk 0:01:16.1]} 16. exd5 {[%clk 0:01:24.4]} 16... Nd4 {[%clk 0:01:15.4]}
17. O-O-O {[%clk 0:01:08.8]} 17... Nxd5 {[%clk 0:01:01.6]} 18. g4 {[%clk
0:00:54.1]} 18... Nf4 {[%clk 0:00:19.6]} 19. Bxf4 {[%clk 0:00:45.2]} 19... exf4
{[%clk 0:00:19.3]} 20. gxh5 {[%clk 0:00:36.4]} 20... Bf5 {[%clk 0:00:13.7]} 21.
Nfe4 {[%clk 0:00:29.3]} 21... gxh5 {[%clk 0:00:11.2]} 22. Kb1 {[%clk 0:00:22.3]}
22... Nxf3 {[%clk 0:00:10.3]} 23. Qe2 {[%clk 0:00:10.1]} 23... Nd4 {[%clk
0:00:09.2]} 24. Qxh5 {[%clk 0:00:09.9]} 24... Qc7 {[%clk 0:00:05.5]} 25. Bb3
{[%clk 0:00:06.4]} 25... Nxb3 {[%clk 0:00:06]} 26. axb3 {[%clk 0:00:06.4]} 26...
Rae8 {[%clk 0:00:06.9]} 27. Rhe1 {[%clk 0:00:01.9]} 27... Re5 {[%clk 0:00:07]}
28. Qf3 {[%clk 0:00:02]} 28... Rfe8 {[%clk 0:00:07.4]} 29. h5 {[%clk 0:00:02.3]}
29... Bxe4 {[%clk 0:00:07]} 30. h6 {[%clk 0:00:02.8]} 30... Bxf3 {[%clk
0:00:06.8]} 31. Nxf3 {[%clk 0:00:03]} 31... Rxe1 {[%clk 0:00:06.7]} 0-1